[Event "Titled Tuesday Blitz February 07 Early 2023"]
[White "Borgaonkar Akshay"]
[Black "Zaichenko, Daria"]
[WhiteFideId "25639110"]
[BlackFideId "4197453"]
[WhiteElo "1991"]
[BlackElo "2104"]
[Result "1-0"]
[Round "01"]
[TimeControl "180+2"]
[Date "2023.02.07"]
[WhiteClock "0:00:23"]
[BlackClock "0:00:11"]

1. Nf3 {[%clk 0:02:58]}  Nf6 {[%clk 0:02:59]} 2. g3 {[%clk 0:02:58]}  d5 {[%clk 0:02:58]} 3. Bg2 {[%clk 0:02:58]}  c5 {[%clk 0:02:58]} 4. O-O {[%clk 0:02:58]}  e6 {[%clk 0:02:58]} 5. d3 {[%clk 0:02:58]}  Be7 {[%clk 0:02:57]} 6. Nbd2 {[%clk 0:02:58]}  O-O {[%clk 0:02:56]} 7. e4 {[%clk 0:02:58]}  Nc6 {[%clk 0:02:51]} 8. Re1 {[%clk 0:02:58]}  d4 {[%clk 0:02:47]} 9. e5 {[%clk 0:02:52]}  Nd5 {[%clk 0:02:46]} 10. Ne4 {[%clk 0:02:52]}  h6 {[%clk 0:02:36]} 11. h4 {[%clk 0:02:48]}  f5 {[%clk 0:02:35]} 12. exf6 {[%clk 0:02:47]}  Nxf6 {[%clk 0:02:35]} 13. Nxf6+ {[%clk 0:02:48]}  Bxf6 {[%clk 0:02:35]} 14. Nd2 {[%clk 0:02:48]}  e5 {[%clk 0:02:32]} 15. Ne4 {[%clk 0:02:49]}  Be7 {[%clk 0:02:32]} 16. c4 {[%clk 0:02:40]}  Bf5 {[%clk 0:02:31]} 17. a3 {[%clk 0:02:31]}  Qd7 {[%clk 0:02:25]} 18. Bd2 {[%clk 0:02:21]}  Kh7 {[%clk 0:02:20]} 19. Rb1 {[%clk 0:02:21]}  a5 {[%clk 0:02:20]} 20. Qa4 {[%clk 0:02:10]}  Rf7 {[%clk 0:02:09]} 21. Qb5 {[%clk 0:02:09]}  Nb8 {[%clk 0:02:03]} 22. Qxd7 {[%clk 0:02:05]}  Nxd7 {[%clk 0:02:03]} 23. Rec1 {[%clk 0:01:58]}  a4 {[%clk 0:01:52]} 24. b4 {[%clk 0:01:54]}  axb3 {[%clk 0:01:51]} 25. Rxb3 {[%clk 0:01:53]}  Ra6 {[%clk 0:01:44]} 26. Be1 {[%clk 0:01:44]}  b6 {[%clk 0:01:34]} 27. Rcb1 {[%clk 0:01:42]}  g6 {[%clk 0:01:22]} 28. Kh2 {[%clk 0:01:40]}  Bxe4 {[%clk 0:01:14]} 29. Bxe4 {[%clk 0:01:40]}  Nf6 {[%clk 0:01:12]} 30. Bb7 {[%clk 0:01:38]}  Ra7 {[%clk 0:01:11]} 31. Bf3 {[%clk 0:01:35]}  Nd7 {[%clk 0:01:08]} 32. Kg2 {[%clk 0:01:35]}  g5 {[%clk 0:01:06]} 33. Be4+ {[%clk 0:01:33]}  Kg7 {[%clk 0:01:05]} 34. hxg5 {[%clk 0:01:34]}  Bxg5 {[%clk 0:01:05]} 35. Bd5 {[%clk 0:01:34]}  Re7 {[%clk 0:01:03]} 36. R1b2 {[%clk 0:01:29]}  Bc1 {[%clk 0:01:01]} 37. Ra2 {[%clk 0:01:23]}  Nf6 {[%clk 0:00:56]} 38. Bc6 {[%clk 0:01:23]}  Re6 {[%clk 0:00:50]} 39. Bf3 {[%clk 0:01:16]}  Ra4 {[%clk 0:00:45]} 40. Rc2 {[%clk 0:01:08]}  Rxa3 {[%clk 0:00:43]} 41. Rxa3 {[%clk 0:01:09]}  Bxa3 {[%clk 0:00:43]} 42. Ra2 {[%clk 0:01:09]}  Bc1 {[%clk 0:00:43]} 43. Ra7+ {[%clk 0:01:07]}  Kg6 {[%clk 0:00:39]} 44. Ra1 {[%clk 0:00:59]}  Bg5 {[%clk 0:00:36]} 45. Bb7 {[%clk 0:00:58]}  e4 {[%clk 0:00:35]} 46. dxe4 {[%clk 0:00:55]}  Nxe4 {[%clk 0:00:35]} 47. Bd5 {[%clk 0:00:55]}  Re7 {[%clk 0:00:28]} 48. Rb1 {[%clk 0:00:56]}  Kf5 {[%clk 0:00:21]} 49. Rxb6 {[%clk 0:00:55]}  Nxg3 {[%clk 0:00:20]} 50. Ba5 {[%clk 0:00:47]}  Ne4 {[%clk 0:00:18]} 51. Rc6 {[%clk 0:00:46]}  d3 {[%clk 0:00:17]} 52. f3 {[%clk 0:00:46]}  Nf6 {[%clk 0:00:12]} 53. Rxc5 {[%clk 0:00:46]}  d2 {[%clk 0:00:10]} 54. Be4+ {[%clk 0:00:24]}  Kf4 {[%clk 0:00:11]} 55. Bxd2# {[%clk 0:00:23]} 1-0


[Site "https://www.chess.com"]

[Event "Titled Tuesday Blitz February 07 Early 2023"]
[White "Diaz Villagran, Robert"]
[Black "Skibbe, Willi"]
[WhiteFideId "3404056"]
[BlackFideId "4682190"]
[WhiteElo "2315"]
[BlackElo "2176"]
[Result "0-1"]
[Round "01"]
[TimeControl "180+2"]
[Date "2023.02.07"]
[WhiteClock "0:00:03"]
[BlackClock "0:00:12"]

1. e4 {[%clk 0:02:59]}  e6 {[%clk 0:03:00]} 2. d3 {[%clk 0:02:58]}  d5 {[%clk 0:03:01]} 3. Nd2 {[%clk 0:02:58]}  Nf6 {[%clk 0:03:01]} 4. Ngf3 {[%clk 0:02:58]}  c5 {[%clk 0:03:01]} 5. g3 {[%clk 0:02:57]}  Be7 {[%clk 0:03:01]} 6. Bg2 {[%clk 0:02:57]}  O-O {[%clk 0:03:01]} 7. O-O {[%clk 0:02:58]}  Nc6 {[%clk 0:03:00]} 8. Re1 {[%clk 0:02:52]}  b5 {[%clk 0:02:59]} 9. e5 {[%clk 0:02:52]}  Nd7 {[%clk 0:02:59]} 10. Nf1 {[%clk 0:02:53]}  a5 {[%clk 0:02:58]} 11. h4 {[%clk 0:02:49]}  b4 {[%clk 0:02:48]} 12. N1h2 {[%clk 0:02:39]}  a4 {[%clk 0:02:47]} 13. a3 {[%clk 0:02:39]}  bxa3 {[%clk 0:02:36]} 14. bxa3 {[%clk 0:02:40]}  c4 {[%clk 0:02:30]} 15. d4 {[%clk 0:02:32]}  c3 {[%clk 0:02:30]} 16. h5 {[%clk 0:02:22]}  Ba6 {[%clk 0:02:28]} 17. h6 {[%clk 0:02:21]}  g6 {[%clk 0:02:28]} 18. Be3 {[%clk 0:02:13]}  Na5 {[%clk 0:02:23]} 19. Qc1 {[%clk 0:02:10]}  Nc4 {[%clk 0:02:18]} 20. Bg5 {[%clk 0:02:10]}  Rb8 {[%clk 0:01:57]} 21. Qf4 {[%clk 0:01:15]}  Rb6 {[%clk 0:01:18]} 22. Ng4 {[%clk 0:01:13]}  f5 {[%clk 0:01:17]} 23. exf6 {[%clk 0:01:12]}  Nxf6 {[%clk 0:01:17]} 24. Nxf6+ {[%clk 0:00:48]}  Bxf6 {[%clk 0:01:16]} 25. Qg4 {[%clk 0:00:49]}  Bc8 {[%clk 0:00:58]} 26. Qh4 {[%clk 0:00:49]}  Rb2 {[%clk 0:00:49]} 27. Re2 {[%clk 0:00:32]}  Nd2 {[%clk 0:00:41]} 28. Bxf6 {[%clk 0:00:26]}  Qxf6 {[%clk 0:00:41]} 29. Qxf6 {[%clk 0:00:22]}  Rxf6 {[%clk 0:00:41]} 30. Nxd2 {[%clk 0:00:23]}  Ba6 {[%clk 0:00:32]} 31. Re3 {[%clk 0:00:11]}  cxd2 {[%clk 0:00:30]} 32. Rd1 {[%clk 0:00:12]}  Rxc2 {[%clk 0:00:30]} 33. Bf1 {[%clk 0:00:12]}  Rc1 {[%clk 0:00:23]} 34. Rxd2 {[%clk 0:00:12]}  Rxf1+ {[%clk 0:00:20]} 35. Kg2 {[%clk 0:00:12]}  Rc1 {[%clk 0:00:16]} 36. Rb2 {[%clk 0:00:12]}  Bf1+ {[%clk 0:00:14]} 37. Kh2 {[%clk 0:00:09]}  Bc4 {[%clk 0:00:14]} 38. Rb8+ {[%clk 0:00:09]}  Kf7 {[%clk 0:00:14]} 39. Rb7+ {[%clk 0:00:09]}  Kf8 {[%clk 0:00:14]} 40. f4 {[%clk 0:00:10]}  Rf7 {[%clk 0:00:13]} 41. Rb8+ {[%clk 0:00:10]}  Ke7 {[%clk 0:00:13]} 42. Ra8 {[%clk 0:00:09]}  Bb3 {[%clk 0:00:13]} 43. Ra7+ {[%clk 0:00:10]}  Kf6 {[%clk 0:00:13]} 44. Ra8 {[%clk 0:00:10]}  Re7 {[%clk 0:00:14]} 45. Rf8+ {[%clk 0:00:10]}  Rf7 {[%clk 0:00:14]} 46. Re8 {[%clk 0:00:10]}  Rc6 {[%clk 0:00:14]} 47. g4 {[%clk 0:00:09]}  g5 {[%clk 0:00:14]} 48. Kg3 {[%clk 0:00:08]}  gxf4+ {[%clk 0:00:14]} 49. Kxf4 {[%clk 0:00:09]}  Kg6+ {[%clk 0:00:14]} 50. Kg3 {[%clk 0:00:10]}  Kxh6 {[%clk 0:00:15]} 51. R3xe6+ {[%clk 0:00:10]}  Rxe6 {[%clk 0:00:14]} 52. Rxe6+ {[%clk 0:00:11]}  Kg7 {[%clk 0:00:15]} 53. Kh4 {[%clk 0:00:09]}  Rc7 {[%clk 0:00:14]} 54. Kg5 {[%clk 0:00:09]}  Rf7 {[%clk 0:00:11]} 55. Rd6 {[%clk 0:00:09]}  Re7 {[%clk 0:00:11]} 56. Kf5 {[%clk 0:00:06]}  Rf7+ {[%clk 0:00:08]} 57. Kg5 {[%clk 0:00:06]}  Kf8 {[%clk 0:00:09]} 58. Kh6 {[%clk 0:00:03]}  Ke7 {[%clk 0:00:09]} 59. Ra6 {[%clk 0:00:02]}  Rf6+ {[%clk 0:00:09]} 60. Rxf6 {[%clk 0:00:02]}  Kxf6 {[%clk 0:00:10]} 61. Kxh7 {[%clk 0:00:02]}  Kg5 {[%clk 0:00:10]} 62. Kg7 {[%clk 0:00:02]}  Kxg4 {[%clk 0:00:11]} 63. Kf6 {[%clk 0:00:03]}  Kf4 {[%clk 0:00:12]} 0-1


[Site "https://www.chess.com"]

[Event "Titled Tuesday Blitz February 07 Early 2023"]
[White "Van den Dikkenberg, Erik"]
[Black "Pinheiro, Iung Alicio de O."]
[WhiteFideId "1005880"]
[BlackFideId "2104350"]
[WhiteElo "2091"]
[BlackElo "2306"]
[Result "0-1"]
[Round "01"]
[TimeControl "180+2"]
[Date "2023.02.07"]
[WhiteClock "0:00:15"]
[BlackClock "0:00:38"]

1. e4 {[%clk 0:02:56]}  c5 {[%clk 0:02:43]} 2. Nc3 {[%clk 0:02:53]}  Nc6 {[%clk 0:02:43]} 3. f4 {[%clk 0:02:47]}  e6 {[%clk 0:02:39]} 4. Nf3 {[%clk 0:02:46]}  Nge7 {[%clk 0:02:35]} 5. a4 {[%clk 0:02:42]}  a6 {[%clk 0:02:29]} 6. d3 {[%clk 0:02:39]}  d5 {[%clk 0:02:29]} 7. Qe2 {[%clk 0:02:38]}  Nd4 {[%clk 0:02:24]} 8. Nxd4 {[%clk 0:02:38]}  cxd4 {[%clk 0:02:25]} 9. Nd1 {[%clk 0:02:37]}  dxe4 {[%clk 0:02:24]} 10. dxe4 {[%clk 0:02:37]}  Nc6 {[%clk 0:02:24]} 11. g3 {[%clk 0:02:36]}  Bb4+ {[%clk 0:02:20]} 12. Bd2 {[%clk 0:02:35]}  Qa5 {[%clk 0:02:20]} 13. Bg2 {[%clk 0:02:34]}  e5 {[%clk 0:02:18]} 14. Bxb4 {[%clk 0:02:27]}  Qxb4+ {[%clk 0:02:18]} 15. c3 {[%clk 0:02:26]}  dxc3 {[%clk 0:02:13]} 16. Nxc3 {[%clk 0:02:26]}  Nd4 {[%clk 0:02:09]} 17. Qd3 {[%clk 0:02:25]}  Be6 {[%clk 0:02:02]} 18. O-O {[%clk 0:01:55]}  Bc4 {[%clk 0:01:57]} 19. Qe3 {[%clk 0:01:55]}  Nc2 {[%clk 0:01:54]} 20. Qd2 {[%clk 0:01:42]}  Nxa1 {[%clk 0:01:53]} 21. Rxa1 {[%clk 0:01:41]}  Qc5+ {[%clk 0:01:48]} 22. Kh1 {[%clk 0:01:40]}  Rd8 {[%clk 0:01:49]} 23. Nd5 {[%clk 0:01:37]}  Bxd5 {[%clk 0:01:32]} 24. exd5 {[%clk 0:01:37]}  exf4 {[%clk 0:01:19]} 25. Re1+ {[%clk 0:01:36]}  Kf8 {[%clk 0:01:19]} 26. Qxf4 {[%clk 0:01:33]}  Qd6 {[%clk 0:01:20]} 27. Qe4 {[%clk 0:01:21]}  h5 {[%clk 0:01:12]} 28. Re3 {[%clk 0:01:04]}  Rh6 {[%clk 0:01:10]} 29. h4 {[%clk 0:01:01]}  Kg8 {[%clk 0:01:09]} 30. Kh2 {[%clk 0:01:01]}  Rf6 {[%clk 0:01:08]} 31. Bf3 {[%clk 0:00:52]}  g6 {[%clk 0:01:07]} 32. b4 {[%clk 0:00:42]}  Rf5 {[%clk 0:01:04]} 33. Kg2 {[%clk 0:00:35]}  Qf6 {[%clk 0:00:46]} 34. Qe7 {[%clk 0:00:31]}  Rxf3 {[%clk 0:00:42]} 35. Qxd8+ {[%clk 0:00:20]}  Qxd8 {[%clk 0:00:41]} 36. Kxf3 {[%clk 0:00:21]}  Qxd5+ {[%clk 0:00:40]} 37. Re4 {[%clk 0:00:20]}  Qb3+ {[%clk 0:00:39]} 38. Kf4 {[%clk 0:00:15]}  Qxa4 {[%clk 0:00:38]} 39. Kg5 {[%clk 0:00:15]}  Kg7 {[%clk 0:00:38]} 0-1


[Site "https://www.chess.com"]

[Event "Titled Tuesday Blitz February 07 Early 2023"]
[White "Shapiro, Viktor"]
[Black "Zanette, Edgard Vinicius"]
[WhiteFideId "4175700"]
[BlackFideId "2109263"]
[WhiteElo "2192"]
[BlackElo "2085"]
[Result "1-0"]
[Round "01"]
[TimeControl "180+2"]
[Date "2023.02.07"]
[WhiteClock "0:01:19"]
[BlackClock "0:00:44"]

1. c4 {[%clk 0:02:58]}  e5 {[%clk 0:02:53]} 2. Nc3 {[%clk 0:02:58]}  Nf6 {[%clk 0:02:52]} 3. g3 {[%clk 0:02:58]}  c6 {[%clk 0:02:50]} 4. Bg2 {[%clk 0:02:58]}  d5 {[%clk 0:02:50]} 5. cxd5 {[%clk 0:02:59]}  cxd5 {[%clk 0:02:50]} 6. Qb3 {[%clk 0:02:59]}  e4 {[%clk 0:02:42]} 7. d3 {[%clk 0:02:59]}  exd3 {[%clk 0:02:25]} 8. Nxd5 {[%clk 0:02:52]}  dxe2 {[%clk 0:02:22]} 9. Nxf6+ {[%clk 0:02:47]}  Qxf6 {[%clk 0:02:21]} 10. Bxb7 {[%clk 0:02:44]}  Bxb7 {[%clk 0:02:11]} 11. Qxb7 {[%clk 0:02:43]}  Qc6 {[%clk 0:02:12]} 12. Qxc6+ {[%clk 0:02:37]}  Nxc6 {[%clk 0:02:12]} 13. Nxe2 {[%clk 0:02:38]}  Bb4+ {[%clk 0:02:09]} 14. Kf1 {[%clk 0:02:31]}  O-O {[%clk 0:02:04]} 15. Be3 {[%clk 0:02:28]}  Rfe8 {[%clk 0:01:52]} 16. Kg2 {[%clk 0:02:28]}  Ne5 {[%clk 0:01:50]} 17. Rac1 {[%clk 0:02:21]}  Ng4 {[%clk 0:01:45]} 18. Rc4 {[%clk 0:02:01]}  Rxe3 {[%clk 0:01:24]} 19. Rxg4 {[%clk 0:01:56]}  Rxe2 {[%clk 0:01:20]} 20. Rxb4 {[%clk 0:01:57]}  h5 {[%clk 0:01:19]} 21. Rc1 {[%clk 0:01:48]}  a5 {[%clk 0:01:13]} 22. Rb5 {[%clk 0:01:46]}  a4 {[%clk 0:01:11]} 23. a3 {[%clk 0:01:33]}  Rd8 {[%clk 0:01:09]} 24. Rc4 {[%clk 0:01:27]}  g6 {[%clk 0:01:05]} 25. Rxa4 {[%clk 0:01:24]}  Rdd2 {[%clk 0:01:03]} 26. Rb8+ {[%clk 0:01:20]}  Kg7 {[%clk 0:01:02]} 27. Rf4 {[%clk 0:01:21]}  Rxb2 {[%clk 0:01:00]} 28. Rxb2 {[%clk 0:01:19]}  Rxb2 {[%clk 0:01:00]} 29. h4 {[%clk 0:01:20]}  Ra2 {[%clk 0:00:58]} 30. a4 {[%clk 0:01:20]}  Ra1 {[%clk 0:00:56]} 31. Kf3 {[%clk 0:01:20]}  Ra2 {[%clk 0:00:56]} 32. Ke3 {[%clk 0:01:20]}  Ra1 {[%clk 0:00:51]} 33. Kd3 {[%clk 0:01:20]}  Kf8 {[%clk 0:00:49]} 34. Kc3 {[%clk 0:01:20]}  f5 {[%clk 0:00:48]} 35. Kb2 {[%clk 0:01:19]}  Re1 {[%clk 0:00:48]} 36. a5 {[%clk 0:01:19]}  Re5 {[%clk 0:00:45]} 37. Ra4 {[%clk 0:01:18]}  Re7 {[%clk 0:00:42]} 38. a6 {[%clk 0:01:18]}  Ra7 {[%clk 0:00:43]} 39. Kc3 {[%clk 0:01:18]}  Ke7 {[%clk 0:00:44]} 40. Kd4 {[%clk 0:01:19]}  Kd6 {[%clk 0:00:44]} 41. Ra5 {[%clk 0:01:19]} 1-0


[Site "https://www.chess.com"]

[Event "Titled Tuesday Blitz February 07 Early 2023"]
[White "Rudzinska, Michalina"]
[Black "Song, Julien"]
[WhiteFideId "1172883"]
[BlackFideId "659487"]
[WhiteElo "2244"]
[BlackElo "2350"]
[Result "0-1"]
[Round "01"]
[TimeControl "180+2"]
[Date "2023.02.07"]
[WhiteClock "0:01:22"]
[BlackClock "0:01:05"]

1. e4 {[%clk 0:02:59]}  e6 {[%clk 0:03:00]} 2. d4 {[%clk 0:02:58]}  d5 {[%clk 0:03:01]} 3. Nd2 {[%clk 0:02:57]}  c5 {[%clk 0:03:00]} 4. exd5 {[%clk 0:02:55]}  Qxd5 {[%clk 0:03:01]} 5. Ngf3 {[%clk 0:02:55]}  cxd4 {[%clk 0:03:01]} 6. Bc4 {[%clk 0:02:55]}  Qd7 {[%clk 0:03:02]} 7. O-O {[%clk 0:02:54]}  Nc6 {[%clk 0:03:03]} 8. Nb3 {[%clk 0:02:54]}  a6 {[%clk 0:03:03]} 9. Nbxd4 {[%clk 0:02:54]}  Nxd4 {[%clk 0:03:04]} 10. Nxd4 {[%clk 0:02:51]}  Qc7 {[%clk 0:03:04]} 11. Qe2 {[%clk 0:02:49]}  Bd6 {[%clk 0:03:04]} 12. Nf5 {[%clk 0:02:45]}  Bxh2+ {[%clk 0:03:02]} 13. Kh1 {[%clk 0:02:40]}  Be5 {[%clk 0:03:03]} 14. f4 {[%clk 0:02:34]}  Bf6 {[%clk 0:03:01]} 15. Ng3 {[%clk 0:02:32]}  b5 {[%clk 0:02:59]} 16. Bd5 {[%clk 0:02:28]}  Bb7 {[%clk 0:02:54]} 17. Bxb7 {[%clk 0:02:23]}  Qxb7 {[%clk 0:02:55]} 18. f5 {[%clk 0:02:21]}  Ne7 {[%clk 0:02:55]} 19. fxe6 {[%clk 0:02:20]}  O-O {[%clk 0:02:56]} 20. exf7+ {[%clk 0:02:19]}  Rxf7 {[%clk 0:02:57]} 21. Bf4 {[%clk 0:02:17]}  Ng6 {[%clk 0:02:54]} 22. Bd6 {[%clk 0:02:15]}  Bxb2 {[%clk 0:02:49]} 23. Rae1 {[%clk 0:02:13]}  Rxf1+ {[%clk 0:02:28]} 24. Rxf1 {[%clk 0:02:13]}  Qd7 {[%clk 0:02:24]} 25. Bb4 {[%clk 0:02:08]}  Re8 {[%clk 0:02:23]} 26. Qf3 {[%clk 0:02:07]}  Ne5 {[%clk 0:02:19]} 27. Qb3+ {[%clk 0:02:06]}  Nc4 {[%clk 0:02:18]} 28. Bc3 {[%clk 0:02:05]}  Bxc3 {[%clk 0:02:14]} 29. Qxc3 {[%clk 0:02:06]}  Re3 {[%clk 0:02:12]} 30. Qb4 {[%clk 0:01:53]}  h6 {[%clk 0:02:06]} 31. Nf5 {[%clk 0:01:51]}  Re8 {[%clk 0:01:56]} 32. Qc3 {[%clk 0:01:46]}  Rf8 {[%clk 0:01:47]} 33. Qh3 {[%clk 0:01:41]}  Kh7 {[%clk 0:01:40]} 34. g4 {[%clk 0:01:35]}  Nd6 {[%clk 0:01:32]} 35. Qd3 {[%clk 0:01:34]}  Qb7+ {[%clk 0:01:29]} 36. Kh2 {[%clk 0:01:31]}  Nxf5 {[%clk 0:01:27]} 37. Rxf5 {[%clk 0:01:32]}  Rxf5 {[%clk 0:01:23]} 38. Qxf5+ {[%clk 0:01:33]}  Kg8 {[%clk 0:01:21]} 39. Qe6+ {[%clk 0:01:32]}  Kf8 {[%clk 0:01:21]} 40. Qf5+ {[%clk 0:01:32]}  Ke8 {[%clk 0:01:16]} 41. Qg6+ {[%clk 0:01:30]}  Kd8 {[%clk 0:01:16]} 42. Qd3+ {[%clk 0:01:29]}  Kc8 {[%clk 0:01:16]} 43. Qf5+ {[%clk 0:01:29]}  Kb8 {[%clk 0:01:14]} 44. Qf8+ {[%clk 0:01:29]}  Ka7 {[%clk 0:01:14]} 45. Qf2+ {[%clk 0:01:29]}  Ka8 {[%clk 0:01:11]} 46. Qf8+ {[%clk 0:01:29]}  Qb8+ {[%clk 0:01:12]} 47. Qxb8+ {[%clk 0:01:28]}  Kxb8 {[%clk 0:01:13]} 48. Kh3 {[%clk 0:01:28]}  Kc7 {[%clk 0:01:11]} 49. Kh4 {[%clk 0:01:28]}  g6 {[%clk 0:01:11]} 50. Kg3 {[%clk 0:01:27]}  Kd6 {[%clk 0:01:11]} 51. Kf4 {[%clk 0:01:28]}  Kd5 {[%clk 0:01:06]} 52. a3 {[%clk 0:01:24]}  h5 {[%clk 0:01:02]} 53. gxh5 {[%clk 0:01:20]}  gxh5 {[%clk 0:01:03]} 54. Kg5 {[%clk 0:01:21]}  Kc4 {[%clk 0:01:03]} 55. Kxh5 {[%clk 0:01:21]}  Kc3 {[%clk 0:01:04]} 56. Kg4 {[%clk 0:01:22]}  Kxc2 {[%clk 0:01:04]} 57. Kf4 {[%clk 0:01:22]}  Kb3 {[%clk 0:01:05]} 0-1


[Site "https://www.chess.com"]

[Event "Titled Tuesday Blitz February 07 Early 2023"]
[White "Kvaloy, Aksel Bu"]
[Black "Theytookourjobs"]
[WhiteFideId "1528815"]
[WhiteElo "2321"]
[BlackElo "2291"]
[Result "1-0"]
[Round "01"]
[TimeControl "180+2"]
[Date "2023.02.07"]
[WhiteClock "0:00:21"]
[BlackClock "0:00:17"]

1. d4 {[%clk 0:02:58]}  e6 {[%clk 0:03:00]} 2. e4 {[%clk 0:02:58]}  d5 {[%clk 0:03:00]} 3. Nc3 {[%clk 0:02:57]}  Be7 {[%clk 0:03:00]} 4. Bd3 {[%clk 0:02:48]}  Nf6 {[%clk 0:02:58]} 5. e5 {[%clk 0:02:48]}  Nfd7 {[%clk 0:02:58]} 6. f4 {[%clk 0:02:47]}  c5 {[%clk 0:02:58]} 7. Nf3 {[%clk 0:02:47]}  Nc6 {[%clk 0:02:59]} 8. Be3 {[%clk 0:02:46]}  cxd4 {[%clk 0:02:34]} 9. Nxd4 {[%clk 0:02:47]}  Bc5 {[%clk 0:02:12]} 10. Be2 {[%clk 0:02:28]}  Nxd4 {[%clk 0:01:57]} 11. Bxd4 {[%clk 0:02:29]}  Bxd4 {[%clk 0:01:45]} 12. Qxd4 {[%clk 0:02:29]}  Qb6 {[%clk 0:01:46]} 13. Qxb6 {[%clk 0:02:29]}  Nxb6 {[%clk 0:01:45]} 14. h4 {[%clk 0:02:22]}  O-O {[%clk 0:01:42]} 15. h5 {[%clk 0:02:19]}  Bd7 {[%clk 0:01:42]} 16. h6 {[%clk 0:02:18]}  g6 {[%clk 0:01:42]} 17. O-O-O {[%clk 0:02:12]}  Rac8 {[%clk 0:01:35]} 18. Kb1 {[%clk 0:02:11]}  a6 {[%clk 0:01:20]} 19. g4 {[%clk 0:02:08]}  f6 {[%clk 0:01:20]} 20. Bd3 {[%clk 0:01:58]}  fxe5 {[%clk 0:01:14]} 21. fxe5 {[%clk 0:01:59]}  Nc4 {[%clk 0:01:12]} 22. Rde1 {[%clk 0:01:47]}  Rf4 {[%clk 0:00:55]} 23. g5 {[%clk 0:01:32]}  Rcf8 {[%clk 0:00:48]} 24. Rhg1 {[%clk 0:01:06]}  Nd2+ {[%clk 0:00:46]} 25. Kc1 {[%clk 0:01:01]}  Nf3 {[%clk 0:00:46]} 26. Rh1 {[%clk 0:00:59]}  Nxe1 {[%clk 0:00:46]} 27. Rxe1 {[%clk 0:01:00]}  b5 {[%clk 0:00:39]} 28. Rg1 {[%clk 0:00:50]}  b4 {[%clk 0:00:35]} 29. Ne2 {[%clk 0:00:49]}  Rf1+ {[%clk 0:00:35]} 30. Rxf1 {[%clk 0:00:48]}  Rxf1+ {[%clk 0:00:35]} 31. Kd2 {[%clk 0:00:48]}  Bb5 {[%clk 0:00:34]} 32. Bxb5 {[%clk 0:00:41]}  axb5 {[%clk 0:00:34]} 33. Nd4 {[%clk 0:00:41]}  Kf7 {[%clk 0:00:30]} 34. Nxb5 {[%clk 0:00:41]}  Rf5 {[%clk 0:00:29]} 35. Nd6+ {[%clk 0:00:41]}  Ke7 {[%clk 0:00:28]} 36. Nxf5+ {[%clk 0:00:39]}  exf5 {[%clk 0:00:28]} 37. Ke3 {[%clk 0:00:35]}  Ke6 {[%clk 0:00:28]} 38. Kf4 {[%clk 0:00:36]}  d4 {[%clk 0:00:26]} 39. a4 {[%clk 0:00:26]}  bxa3 {[%clk 0:00:26]} 40. bxa3 {[%clk 0:00:26]}  Kd5 {[%clk 0:00:25]} 41. a4 {[%clk 0:00:26]}  Kc4 {[%clk 0:00:16]} 42. e6 {[%clk 0:00:26]}  Kc3 {[%clk 0:00:16]} 43. e7 {[%clk 0:00:26]}  Kxc2 {[%clk 0:00:17]} 44. e8=Q {[%clk 0:00:27]}  d3 {[%clk 0:00:17]} 45. Ke3 {[%clk 0:00:21]} 1-0


[Site "https://www.chess.com"]

[Event "Titled Tuesday Blitz February 07 Early 2023"]
[White "Bashirli, Saadat"]
[Black "Kalogeris, Ioannis"]
[WhiteFideId "13429990"]
[BlackFideId "4239563"]
[WhiteElo "1571"]
[BlackElo "2423"]
[Result "0-1"]
[Round "01"]
[TimeControl "180+2"]
[Date "2023.02.07"]
[WhiteClock "0:00:17"]
[BlackClock "0:00:48"]

1. e4 {[%clk 0:02:56]}  e5 {[%clk 0:02:58]} 2. Nf3 {[%clk 0:02:56]}  Nc6 {[%clk 0:02:58]} 3. Bc4 {[%clk 0:02:57]}  Bc5 {[%clk 0:02:57]} 4. c3 {[%clk 0:02:57]}  Nf6 {[%clk 0:02:57]} 5. d3 {[%clk 0:02:58]}  O-O {[%clk 0:02:56]} 6. O-O {[%clk 0:02:58]}  d6 {[%clk 0:02:56]} 7. Nbd2 {[%clk 0:02:59]}  Bb6 {[%clk 0:02:55]} 8. Re1 {[%clk 0:02:58]}  Ne7 {[%clk 0:02:54]} 9. Nf1 {[%clk 0:02:57]}  Ng6 {[%clk 0:02:54]} 10. Ng3 {[%clk 0:02:56]}  c6 {[%clk 0:02:54]} 11. d4 {[%clk 0:02:57]}  Bg4 {[%clk 0:02:43]} 12. Be3 {[%clk 0:02:50]}  h6 {[%clk 0:02:40]} 13. h3 {[%clk 0:02:42]}  Bxf3 {[%clk 0:02:36]} 14. Qxf3 {[%clk 0:02:43]}  Nh4 {[%clk 0:02:36]} 15. Qd1 {[%clk 0:02:37]}  Qc7 {[%clk 0:02:27]} 16. Qc2 {[%clk 0:02:24]}  Rae8 {[%clk 0:02:25]} 17. Rad1 {[%clk 0:02:22]}  exd4 {[%clk 0:02:18]} 18. cxd4 {[%clk 0:02:23]}  d5 {[%clk 0:02:18]} 19. Bd3 {[%clk 0:02:16]}  dxe4 {[%clk 0:02:16]} 20. Nxe4 {[%clk 0:02:16]}  Nxe4 {[%clk 0:02:10]} 21. Bxe4 {[%clk 0:02:17]}  f5 {[%clk 0:02:04]} 22. Bd3 {[%clk 0:02:14]}  Kh8 {[%clk 0:01:59]} 23. Qc3 {[%clk 0:01:57]}  Qd6 {[%clk 0:01:55]} 24. Bc4 {[%clk 0:01:52]}  Qg6 {[%clk 0:01:49]} 25. Bf1 {[%clk 0:01:25]}  f4 {[%clk 0:01:38]} 26. Bd2 {[%clk 0:01:19]}  Rxe1 {[%clk 0:01:37]} 27. Rxe1 {[%clk 0:01:19]}  Nxg2 {[%clk 0:01:24]} 28. Bd3 {[%clk 0:00:43]}  Qg5 {[%clk 0:01:20]} 29. Re5 {[%clk 0:00:43]}  Qh4 {[%clk 0:01:01]} 30. Kxg2 {[%clk 0:00:42]}  f3+ {[%clk 0:01:00]} 31. Kf1 {[%clk 0:00:22]}  Bxd4 {[%clk 0:00:59]} 32. Be3 {[%clk 0:00:16]}  Bxc3 {[%clk 0:00:55]} 33. bxc3 {[%clk 0:00:17]}  Qxh3+ {[%clk 0:00:55]} 34. Ke1 {[%clk 0:00:18]}  Rd8 {[%clk 0:00:50]} 35. Bf1 {[%clk 0:00:18]}  Qxf1+ {[%clk 0:00:48]} 36. Kxf1 {[%clk 0:00:17]}  Rd1# {[%clk 0:00:48]} 0-1


[Site "https://www.chess.com"]